bitfinex/quotes_BTCUSD_20240826
["timestamp","ask_amount","ask_price","bid_price","bid_amount"]
[1724645453814,1.75765774,64247.0,64246.0,0.0029086]
[1724645453970,1.64123904,64247.0,64246.0,0.0029086]
[1724645454916,1.75771534,64247.0,64246.0,0.0029086]
[1724645455484,1.75775024,64247.0,64246.0,0.0029086]
[1724645456318,1.64123904,64247.0,64246.0,0.0029086]
[1724645458577,1.64323904,64247.0,64246.0,0.0029086]
[1724645458903,1.78324646,64247.0,64246.0,0.0029086]
[1724645459758,1.78326968,64247.0,64246.0,0.0029086]
[1724645460318,1.64323904,64247.0,64246.0,0.0029086]
[1724645462838,1.95453704,64247.0,64246.0,0.0029086]
[1724645464656,2.11214449,64247.0,64246.0,0.0029086]
[1724645465988,1.95453704,64247.0,64246.0,0.0029086]
[1724645467289,2.11071505,64247.0,64246.0,0.0029086]
[1724645467490,1.714243,64243.0,64242.0,0.0009086]
[1724645467667,2.20708039,64243.0,64242.0,0.0009086]
[1724645468677,2.20708039,64243.0,64242.0,0.0019086]
[1724645468678,2.21108039,64243.0,64242.0,0.0019086]
[1724645468928,2.21608039,64243.0,64242.0,0.0029086]
[1724645469118,2.21208039,64243.0,64242.0,0.0009086]
[1724645469353,2.20708039,64243.0,64242.0,0.0009086]
[1724645469475,2.21608039,64243.0,64242.0,0.0029086]
[1724645470230,2.37221207,64243.0,64242.0,0.0029086]
[1724645470576,2.53631207,64243.0,64242.0,0.0029086]
[1724645470751,2.38018039,64243.0,64242.0,0.0029086]
[1724645471171,2.53771915,64243.0,64242.0,0.0029086]
[1724645471319,2.38018039,64243.0,64242.0,0.0029086]
[1724645473168,2.38888982,64243.0,64242.0,0.0029086]
[1724645474063,2.5450215,64243.0,64242.0,0.0029086]
[1724645475232,2.38888982,64243.0,64242.0,0.0029086]
[1724645476445,2.34208982,64243.0,64242.0,0.0029086]
[1724645477254,2.33338039,64243.0,64242.0,0.0029086]
[1724645480686,2.53767853,64243.0,64242.0,0.0029086]
[1724645480805,2.53770156,64243.0,64242.0,0.0029086]
[1724645481224,2.6420984,64243.0,64242.0,0.0029086]
[1724645481871,2.48457723,64243.0,64242.0,0.0029086]
[1724645482063,2.53770353,64243.0,64242.0,0.0029086]
[1724645482264,2.49090353,64243.0,64242.0,0.0029086]
[1724645482438,2.33338039,64243.0,64242.0,0.0029086]
[1724645483019,2.32838039,64243.0,64242.0,0.0029086]
[1724645489249,2.24588039,64243.0,64242.0,0.0029086]
[1724645491917,2.24588039,64243.0,64242.0,0.1462086]
[1724645492107,2.24588039,64243.0,64242.0,0.0676086]
[1724645492404,2.08178039,64243.0,64242.0,0.0676086]
[1724645502417,2.23943368,64243.0,64242.0,0.0676086]
[1724645504278,2.08178039,64243.0,64242.0,0.0676086]
[1724645507702,2.08260639,64243.0,64242.0,0.0676086]
[1724645508953,2.08260639,64243.0,64242.0,0.0029086]
[1724645510957,2.21090639,64243.0,64242.0,0.0029086]
[1724645511155,2.21090639,64243.0,64241.0,0.0009086]
[1724645511156,1.712271,64242.0,64241.0,0.0009086]
[1724645511306,2.04994901,64242.0,64241.0,0.0009086]
[1724645511470,0.85983,64240.0,64239.0,0.0009086]
[1724645511666,1.22336739,64240.0,64239.0,0.0009086]
[1724645512931,1.84603139,64240.0,64239.0,0.0009086]
[1724645513106,1.76453139,64240.0,64239.0,0.0009086]
[1724645513306,1.77853139,64240.0,64239.0,0.0019086]
[1724645514236,1.79253139,64240.0,64239.0,0.0029086]
[1724645515262,1.79253139,64240.0,64239.0,0.0029086]
[1724645515405,2.10386339,64240.0,64239.0,0.0029086]
[1724645516448,2.22726339,64240.0,64239.0,0.0029086]
[1724645517197,2.18046339,64240.0,64239.0,0.0029086]
[1724645517371,2.22726339,64240.0,64239.0,0.0029086]
[1724645518154,2.18046339,64240.0,64239.0,0.0029086]
[1724645520605,2.34456339,64240.0,64239.0,0.0029086]
[1724645522583,1.876453,64239.0,64238.0,0.0009086]
[1724645522755,2.13263101,64239.0,64238.0,0.0009086]
[1724645523721,2.13263101,64239.0,64232.0,0.0645086]
[1724645523722,1.712513,64233.0,64232.0,0.0645086]
[1724645523918,1.97605039,64233.0,64232.0,0.0645086]
[1724645524364,2.13371873,64233.0,64232.0,0.0645086]
[1724645524772,2.13371873,64233.0,64232.0,0.0009086]
[1724645524996,2.13371623,64233.0,64232.0,0.0009086]
[1724645525151,2.14771623,64233.0,64232.0,0.0019086]
[1724645525793,2.16171623,64233.0,64232.0,0.0019086]
[1724645526454,2.10405039,64233.0,64232.0,0.0019086]
[1724645526658,2.10405039,64233.0,64232.0,0.1432086]
[1724645529690,2.10405039,64233.0,64232.0,0.1382086]
[1724645530993,2.11286944,64233.0,64232.0,0.1382086]
[1724645531235,2.11286944,64233.0,64232.0,0.1391172]
[1724645535428,2.11286944,64233.0,64232.0,0.0009086]
[1724645548368,2.11286944,64233.0,64232.0,0.0645086]
[1724645548975,2.11286944,64233.0,64229.0,0.0416161]
[1724645548976,1.40121,64230.0,64229.0,0.0416161]
[1724645549154,1.66474739,64230.0,64229.0,0.0416161]
[1724645551243,1.67774739,64230.0,64229.0,0.0416161]
[1724645552073,1.69174739,64230.0,64229.0,0.1054161]
[1724645553930,1.69156001,64230.0,64229.0,0.1054161]
[1724645554181,1.58420063,64230.0,64229.0,0.1054161]
[1724645554520,1.69156001,64230.0,64229.0,0.1054161]
[1724645554920,1.69156001,64230.0,64229.0,0.1063247]
[1724645556778,1.83159893,64230.0,64229.0,0.1063247]
[1724645557341,1.69156001,64230.0,64229.0,0.1063247]
[1724645557544,1.83171756,64230.0,64229.0,0.1063247]
[1724645558154,1.72435818,64230.0,64229.0,0.1063247]
[1724645558272,1.83171756,64230.0,64229.0,0.1063247]
[1724645558668,2.00294001,64230.0,64229.0,0.0612086]
[1724645559678,2.16048379,64230.0,64229.0,0.0612086]
[1724645560689,2.32458379,64230.0,64229.0,0.0612086]
[1724645560935,2.16048379,64230.0,64229.0,0.0612086]
[1724645561268,2.00294001,64230.0,64229.0,0.0612086]
[1724645561886,2.16048379,64230.0,64229.0,0.0612086]
[1724645562087,2.16048379,64230.0,64229.0,0.1440086]
[1724645566178,2.00294001,64230.0,64229.0,0.1440086]
[1724645566381,2.16073791,64230.0,64229.0,0.1440086]
[1724645567856,2.16074624,64230.0,64229.0,0.1440086]
[1724645568237,2.00294001,64230.0,64229.0,0.1440086]
[1724645577965,2.00376601,64230.0,64229.0,0.1440086]
[1724645582206,2.00376601,64230.0,64229.0,0.0612086]
[1724645582538,2.10376601,64230.0,64229.0,0.0612086]
[1724645582790,2.10376601,64230.0,64229.0,0.0009086]
[1724645589401,2.10376601,64230.0,64208.0,0.001]
[1724645589402,1.089949,64223.0,64221.0,0.0649]
[1724645589556,1.089949,64223.0,64219.0,0.0812]
[1724645589557,1.76490039,64223.0,64219.0,0.0812]
[1724645589960,1.76490039,64223.0,64218.0,0.0649]
[1724645589961,0.778585,64219.0,64218.0,0.0649]
[1724645590173,0.778585,64219.0,64202.0,0.0019075]
[1724645590174,0.0783,64218.0,64215.0,0.0648]
[1724645590399,0.0783,64218.0,64202.0,0.0009075]
[1724645590400,0.778692,64210.0,64202.0,0.0009075]
[1724645590611,1.50900538,64210.0,64202.0,0.0009075]
[1724645590827,1.50900538,64210.0,64209.0,0.0657075]
[1724645591044,1.82048238,64210.0,64209.0,0.0657075]
[1724645591269,2.07821799,64210.0,64209.0,0.0009075]
[1724645591479,1.60900538,64210.0,64209.0,0.0009075]
[1724645592698,1.63203811,64210.0,64209.0,0.0009075]
[1724645592910,1.64603811,64210.0,64209.0,0.0009075]
[1724645593155,1.61803811,64210.0,64209.0,0.0009075]
[1724645593608,1.64603811,64210.0,64209.0,0.0009075]
[1724645594520,1.7859179,64210.0,64209.0,0.0009075]
[1724645596079,1.64603811,64210.0,64209.0,0.0009075]
[1724645598040,1.80221612,64210.0,64209.0,0.0009075]
[1724645598483,2.11369312,64210.0,64209.0,0.0009075]
[1724645599043,1.80221612,64210.0,64209.0,0.0009075]
[1724645599827,2.11369312,64210.0,64209.0,0.0009075]
[1724645599975,1.80221612,64210.0,64209.0,0.0009075]
[1724645606813,1.91858815,64210.0,64209.0,0.0009075]
[1724645607011,1.94281612,64210.0,64209.0,0.0009075]
[1724645607214,1.87791612,64210.0,64209.0,0.0009075]
[1724645607620,1.91859372,64210.0,64209.0,0.0009075]
[1724645608026,1.90459372,64210.0,64209.0,0.0009075]
[1724645608834,1.91859372,64210.0,64209.0,0.0009075]
[1724645610194,1.80221612,64210.0,64209.0,0.0009075]
[1724645610365,1.91860174,64210.0,64209.0,0.0009075]
[1724645610619,2.11369312,64210.0,64209.0,0.0009075]
[1724645610794,1.80221612,64210.0,64209.0,0.0009075]
[1724645612963,1.91860939,64210.0,64209.0,0.0009075]
[1724645613491,1.91860562,64210.0,64209.0,0.0009075]
[1724645613696,1.80221612,64210.0,64209.0,0.0009075]
[1724645617678,1.9186387,64210.0,64209.0,0.0009075]
[1724645617880,1.80221612,64210.0,64209.0,0.0009075]
[1724645618825,1.90961836,64210.0,64209.0,0.0009075]
[1724645619359,1.90961836,64210.0,64209.0,0.1427075]
[1724645619991,1.64608097,64210.0,64209.0,0.1427075]
[1724645620195,1.63700538,64210.0,64209.0,0.1427075]
[1724645620393,1.68359179,64210.0,64209.0,0.1427075]
[1724645620973,1.66959179,64210.0,64209.0,0.1427075]
[1724645621188,1.60900538,64210.0,64209.0,0.1427075]
[1724645621493,1.62300538,64210.0,64209.0,0.1427075]
[1724645621691,1.60900538,64210.0,64209.0,0.1427075]
[1724645621904,1.62300538,64210.0,64209.0,0.1427075]
[1724645622093,1.63700538,64210.0,64209.0,0.1427075]
[1724645622320,1.75344035,64210.0,64209.0,0.1427075]
[1724645622492,1.63700538,64210.0,64209.0,0.1427075]
[1724645623045,1.75344035,64210.0,64209.0,0.1427075]
[1724645623254,1.62300538,64210.0,64209.0,0.1427075]
[1724645623531,1.75352091,64210.0,64209.0,0.1427075]
[1724645623966,1.72552091,64210.0,64209.0,0.1427075]
[1724645624114,1.73952091,64210.0,64209.0,0.1427075]
[1724645624320,1.75352091,64210.0,64209.0,0.1427075]
[1724645624499,1.63700538,64210.0,64209.0,0.1427075]
[1724645624907,1.79318339,64210.0,64209.0,0.1427075]
[1724645632825,1.9332508,64210.0,64209.0,0.1427075]
[1724645634650,1.79318339,64210.0,64209.0,0.1427075]
[1724645638633,1.63700538,64210.0,64209.0,0.1427075]
[1724645638852,1.118169,64210.0,64209.0,0.1427075]
[1724645639074,1.36573462,64210.0,64209.0,0.1427075]
[1724645639851,1.35173462,64210.0,64209.0,0.1427075]
[1724645640052,1.36573462,64210.0,64209.0,0.1427075]
[1724645640461,1.35173462,64210.0,64209.0,0.1427075]
[1724645640858,1.36573462,64210.0,64209.0,0.1427075]
[1724645641712,1.35173462,64210.0,64209.0,0.1427075]
[1724645641940,1.36573462,64210.0,64209.0,0.1427075]
[1724645642567,1.35173462,64210.0,64209.0,0.1427075]
[1724645643383,1.36573462,64210.0,64209.0,0.1427075]
[1724645644355,1.22552838,64210.0,64209.0,0.1427075]
[1724645644690,1.36571861,64210.0,64209.0,0.1427075]
[1724645645336,1.35171861,64210.0,64209.0,0.1427075]
[1724645645736,1.22552838,64210.0,64209.0,0.1427075]
[1724645645947,1.36571861,64210.0,64209.0,0.1427075]
[1724645646361,1.22552838,64210.0,64209.0,0.1427075]
[1724645646787,1.36571332,64210.0,64209.0,0.1427075]
[1724645646985,1.35171332,64210.0,64209.0,0.1427075]
[1724645647188,1.36571332,64210.0,64209.0,0.1427075]
[1724645650016,1.36571246,64210.0,64209.0,0.1427075]
[1724645653636,1.22552838,64210.0,64209.0,0.1427075]
[1724645653955,1.36572914,64210.0,64209.0,0.1427075]
[1724645655133,1.22552838,64210.0,64209.0,0.1427075]
[1724645655542,1.36573494,64210.0,64209.0,0.1427075]
[1724645655883,1.36574049,64210.0,64209.0,0.1427075]
[1724645657255,1.22552838,64210.0,64209.0,0.1427075]
[1724645658670,1.22552838,64210.0,64209.0,0.0009075]
[1724645658871,1.53700538,64210.0,64209.0,0.0009075]
[1724645659077,1.61980538,64210.0,64209.0,0.0009075]
[1724645659656,1.68430538,64210.0,64209.0,0.0009075]
[1724645660901,1.84048339,64210.0,64209.0,0.0009075]
[1724645661726,1.77598339,64210.0,64209.0,0.0009075]
[1724645663682,1.78479197,64210.0,64209.0,0.0009075]
[1724645666367,1.69318339,64210.0,64209.0,0.0009075]
[1724645670061,1.58582401,64210.0,64209.0,0.0009075]
[1724645670226,1.69318339,64210.0,64209.0,0.0009075]
[1724645676065,1.69318339,64210.0,64209.0,0.0825075]
[1724645676243,1.69318339,64210.0,64209.0,0.1460075]
[1724645679634,1.53700538,64210.0,64209.0,0.1460075]
[1724645680163,1.429646,64210.0,64209.0,0.1460075]
[1724645680363,1.53700538,64210.0,64209.0,0.1460075]
[1724645698594,1.53700538,64210.0,64209.0,0.0644075]
[1724645700137,1.53700538,64210.0,64209.0,0.0009075]
[1724645708471,1.77528339,64210.0,64209.0,0.0009075]
[1724645709300,1.77528339,64210.0,64207.0,0.0009075]
[1724645709301,1.090204,64208.0,64207.0,0.0009075]
[1724645709471,1.38808201,64208.0,64207.0,0.0009075]
[1724645709626,1.48808201,64208.0,64207.0,0.0009075]
[1724645709839,2.11105601,64208.0,64207.0,0.0009075]
[1724645710055,2.21841539,64208.0,64207.0,0.0009075]
[1724645711061,0.778972,64187.0,64186.0,0.38424849]
[1724645711400,0.88633138,64187.0,64186.0,0.38324849]
[1724645711528,0.88633138,64187.0,64186.0,0.001]
[1724645711731,0.467391,64186.0,64185.0,0.011075]
[1724645711934,0.467391,64186.0,64185.0,0.010075]
[1724645711935,0.778985,64186.0,64185.0,0.010075]
[1724645712139,0.778985,64186.0,64185.0,0.011075]
[1724645713956,0.778985,64186.0,64185.0,0.010075]
[1724645714168,0.778985,64186.0,64185.0,0.009075]
[1724645714372,1.090579,64186.0,64185.0,0.146075]
[1724645720227,1.090579,64186.0,64185.0,0.070675]
[1724645720653,1.090579,64186.0,64185.0,0.009075]
[1724645720654,1.54997522,64186.0,64185.0,0.009075]
[1724645720844,1.479873,64186.0,64185.0,0.009075]
[1724645721646,1.57713063,64186.0,64185.0,0.009075]
[1724645721862,1.57714276,64186.0,64185.0,0.009075]
[1724645722104,1.58714276,64186.0,64185.0,0.009075]
[1724645722307,1.479873,64186.0,64185.0,0.009075]
[1724645722639,1.507873,64186.0,64185.0,0.009075]
[1724645723322,1.57781454,64186.0,64185.0,0.009075]
[1724645725892,1.57777995,64186.0,64185.0,0.009075]
[1724645726258,1.507873,64186.0,64185.0,0.009075]
[1724645726802,1.55447092,64186.0,64185.0,0.009075]
[1724645728400,1.47658341,64186.0,64185.0,0.009075]
[1724645729858,1.47740941,64186.0,64185.0,0.009075]
[1724645730260,1.43081149,64186.0,64185.0,0.009075]
[1724645731226,1.11921749,64186.0,64185.0,0.149275]
[1724645731339,1.22657687,64186.0,64185.0,0.149275]
[1724645732155,0.80762349,64186.0,64185.0,0.149275]
[1724645732350,0.49602949,64186.0,64185.0,0.149275]
[1724645732768,0.80762349,64186.0,64185.0,0.149275]
[1724645733392,0.77962349,64186.0,64185.0,0.149275]
[1724645733746,0.80762349,64186.0,64185.0,0.149275]
[1724645749489,0.80557144,64186.0,64185.0,0.149275]
[1724645750948,0.80557144,64186.0,64185.0,0.070375]
[1724645751915,0.80557144,64186.0,64185.0,0.009075]
[1724645751916,1.163834,64186.0,64185.0,0.009075]
[1724645752119,1.11716544,64186.0,64185.0,0.009075]
[1724645752326,1.18716828,64186.0,64185.0,0.009075]
[1724645752535,1.37683684,64186.0,64185.0,0.009075]
[1724645752853,1.26016544,64186.0,64185.0,0.009075]
[1724645757362,1.19426544,64186.0,64185.0,0.009075]
[1724645758039,1.11716544,64186.0,64185.0,0.072075]
[1724645758270,1.22452482,64186.0,64185.0,0.072075]
[1724645759824,1.22452482,64186.0,64185.0,0.072075]
[1724645762656,1.22452482,64186.0,64185.0,0.009075]
[1724645770884,1.30772482,64186.0,64185.0,0.009075]
[1724645772628,1.44801831,64186.0,64185.0,0.009075]
[1724645772833,1.37072482,64186.0,64185.0,0.009075]
[1724645773327,1.51101603,64186.0,64185.0,0.009075]
[1724645773502,1.68231882,64186.0,64185.0,0.009075]
[1724645774208,1.69104054,64186.0,64185.0,0.009075]
[1724645775067,1.83132974,64186.0,64185.0,0.009075]
[1724645775219,1.69104054,64186.0,64185.0,0.009075]
[1724645775621,1.68231882,64186.0,64185.0,0.009075]
[1724645778329,1.82259978,64186.0,64185.0,0.009075]
[1724645778520,1.68231882,64186.0,64185.0,0.009075]
[1724645783324,1.82260438,64186.0,64185.0,0.009075]
[1724645783806,1.82260254,64186.0,64185.0,0.009075]
[1724645786951,1.68231882,64186.0,64185.0,0.009075]
[1724645787098,1.61931882,64186.0,64185.0,0.009075]
[1724645793707,1.75962219,64186.0,64185.0,0.009075]
[1724645794097,1.61931882,64186.0,64185.0,0.009075]
[1724645795460,1.75962219,64186.0,64185.0,0.009075]
[1724645795837,1.61931882,64186.0,64185.0,0.009075]
[1724645795999,1.75962219,64186.0,64185.0,0.009075]
[1724645798290,1.75967118,64186.0,64185.0,0.009075]
[1724645798607,1.75967406,64186.0,64185.0,0.009075]
[1724645800636,1.67647406,64186.0,64185.0,0.009075]
[1724645801173,2.24909083,64186.0,64185.0,0.009075]
[1724645808724,1.96153038,64182.0,64181.0,0.009086]
[1724645808920,2.21770839,64182.0,64181.0,0.009086]
[1724645810571,2.22870839,64182.0,64181.0,0.009086]
[1724645810801,2.23970839,64182.0,64181.0,0.009086]
[1724645814693,2.24861953,64182.0,64181.0,0.009086]
[1724645815004,1.79670653,64182.0,64181.0,0.009086]
[1724645815181,1.78779539,64182.0,64181.0,0.087086]
[1724645815534,1.92782723,64182.0,64181.0,0.087086]
[1724645815737,1.92782723,64182.0,64181.0,0.009086]
[1724645815939,1.78779539,64182.0,64181.0,0.009086]
[1724645817448,1.78779539,64182.0,64181.0,0.070586]
[1724645817449,0.801032,64182.0,64181.0,0.070586]
[1724645817655,0.801032,64182.0,64181.0,0.146786]
[1724645821219,0.801032,64182.0,64181.0,0.147786]
[1724645821220,0.177806,64182.0,64181.0,0.147786]
[1724645821463,0.022,64182.0,64181.0,0.147786]
[1724645822825,0.022,64182.0,64181.0,0.615213]
[1724645823028,0.022,64182.0,64181.0,0.303595]
[1724645823978,0.022,64182.0,64181.0,0.147786]
[1724645824183,0.022,64182.0,64181.0,0.46288873]
[1724645824394,0.022,64182.0,64181.0,0.45977301]
[1724645826054,0.022,64182.0,64181.0,1.08300901]
[1724645826333,0.022,64182.0,64181.0,1.21336839]
[1724645826557,0.022,64182.0,64181.0,1.52498639]
[1724645827189,0.011,64182.0,64181.0,1.52498639]
[1724645827500,0.013,64182.0,64181.0,1.52498639]
[1724645827907,0.011,64182.0,64181.0,1.52498639]
[1724645828132,0.000826,64186.0,64185.0,0.917297]
[1724645828333,0.000826,64186.0,64185.0,1.07347501]
[1724645829117,0.000826,64186.0,64185.0,0.76187601]
[1724645830073,0.000826,64186.0,64185.0,0.76287601]
[1724645831480,0.000826,64186.0,64185.0,0.76387601]
[1724645831686,0.000826,64186.0,64185.0,0.76287601]
[1724645832113,0.000826,64186.0,64185.0,0.76387601]
[1724645833026,0.000826,64186.0,64185.0,1.38707401]
[1724645833239,0.000826,64186.0,64185.0,1.41007401]
[1724645833447,0.14724527,64215.0,64209.0,0.14]
[1724645833448,0.04656351,64215.0,64209.0,0.14]
[1724645833659,0.11640878,64220.0,64185.0,0.18117801]
[1724645833660,0.155721,64218.0,64217.0,0.001]
[1724645833892,0.155721,64218.0,64217.0,0.0807]
[1724645834103,0.10735938,64224.0,64217.0,0.0807]
[1724645834104,0.312246,64222.0,64217.0,0.0807]
[1724645834249,0.311424,64221.0,64217.0,0.08381401]
[1724645834466,0.155718,64219.0,64218.0,0.001]
[1724645834855,0.467152,64219.0,64218.0,0.001]
[1724645836382,0.473152,64219.0,64218.0,0.001]
[1724645836776,0.467152,64219.0,64218.0,0.001]
[1724645836987,0.477152,64219.0,64218.0,0.001]
[1724645838229,0.487152,64219.0,64218.0,0.001]
[1724645840926,0.788586,64219.0,64218.0,0.001]
[1724645841141,0.798586,64219.0,64218.0,0.001]
[1724645841341,0.788586,64219.0,64218.0,0.001]
[1724645841798,0.798586,64219.0,64218.0,0.001]
[1724645841931,0.02,64219.0,64218.0,0.7744501]
[1724645842145,0.02,64219.0,64218.0,1.12817259]
[1724645843120,0.000826,64222.0,64218.0,1.12817259]
[1724645843121,0.000826,64222.0,64221.0,0.615136]
[1724645843317,0.000826,64222.0,64221.0,0.77131401]
[1724645843471,0.000826,64222.0,64221.0,0.8135975]
[1724645843874,0.000826,64222.0,64221.0,1.1250215]
[1724645844470,0.003826,64222.0,64221.0,1.1250215]
[1724645844969,0.003826,64222.0,64221.0,1.1480215]
[1724645845191,0.006826,64222.0,64221.0,1.1480215]
[1724645847276,0.006826,64222.0,64221.0,1.10573801]
[1724645848553,0.006826,64222.0,64221.0,1.1480215]
[1724645848767,0.006826,64222.0,64221.0,0.9923095]
[1724645848975,0.006826,64222.0,64221.0,1.1480215]
[1724645857913,0.006826,64222.0,64221.0,1.4594455]
[1724645858094,0.006826,64222.0,64221.0,1.460353]
[1724645859137,0.003826,64222.0,64221.0,1.460353]
[1724645859351,0.000826,64222.0,64221.0,1.460353]
[1724645859524,0.003826,64222.0,64221.0,1.460353]
[1724645859760,0.006826,64222.0,64221.0,1.460353]
[1724645860115,0.003826,64222.0,64221.0,1.460353]
[1724645860894,0.000826,64222.0,64221.0,1.463353]
[1724645861090,0.002826,64222.0,64221.0,1.466353]
[1724645864914,0.002826,64222.0,64221.0,1.42406951]
[1724645865116,0.002826,64222.0,64221.0,1.466353]
[1724645867845,0.002826,64222.0,64221.0,1.42406951]
[1724645868047,0.002826,64222.0,64221.0,1.466353]
[1724645870020,0.002826,64222.0,64221.0,1.57370237]
[1724645875218,0.002826,64222.0,64221.0,1.53141888]
[1724645875421,0.002826,64222.0,64221.0,1.57370237]
[1724645877017,0.002826,64222.0,64221.0,1.53141888]
[1724645877263,0.002826,64222.0,64221.0,1.57370237]
[1724645879170,0.002826,64222.0,64221.0,1.53141888]
[1724645879382,0.002826,64222.0,64221.0,1.42406951]
[1724645880719,0.002826,64222.0,64221.0,0.96464551]
[1724645880967,0.080226,64222.0,64221.0,0.63122151]
[1724645881342,0.080226,64222.0,64221.0,0.94264551]
[1724645881741,0.002826,64222.0,64221.0,0.94264551]
[1724645881938,0.002826,64222.0,64221.0,0.93964551]
[1724645881939,0.001826,64222.0,64221.0,0.93964551]
[1724645882170,0.001826,64222.0,64221.0,1.12999488]
[1724645882372,0.001826,64222.0,64221.0,1.21989488]
[1724645883075,0.000826,64222.0,64221.0,1.21489488]
[1724645883321,0.000826,64222.0,64221.0,1.21589488]
[1724645883496,0.000826,64222.0,64221.0,1.21889488]
[1724645884012,0.000826,64222.0,64221.0,1.21789488]
[1724645884200,0.000826,64222.0,64221.0,1.11254551]
[1724645884672,0.000826,64222.0,64221.0,1.11054551]
[1724645884872,0.000826,64222.0,64221.0,1.10754551]
[1724645885253,0.000826,64222.0,64221.0,1.11054551]
[1724645886328,0.000826,64222.0,64221.0,1.11254551]
[1724645887367,0.000826,64222.0,64221.0,1.15917126]
[1724645888364,0.000826,64222.0,64221.0,1.07617126]
[1724645889306,0.000826,64222.0,64221.0,1.02954551]
[1724645890424,0.144626,64222.0,64221.0,0.16308551]
[1724645890972,0.300335,64222.0,64221.0,0.0069075]
[1724645891591,0.300335,64222.0,64221.0,0.0049075]
[1724645891794,0.300335,64222.0,64221.0,0.0019075]
[1724645892582,0.300335,64222.0,64221.0,0.0009075]
[1724645892795,0.611754,64222.0,64221.0,0.0019075]
[1724645893232,0.613754,64222.0,64221.0,0.0019075]
[1724645894527,0.302335,64222.0,64221.0,0.0019075]
[1724645895369,0.146626,64222.0,64221.0,0.0019075]
[1724645896248,0.084026,64222.0,64221.0,0.31379751]
[1724645899708,0.002826,64222.0,64221.0,0.62522151]
[1724645900846,0.002826,64222.0,64221.0,0.93664551]
[1724645901473,0.002826,64222.0,64221.0,1.31226951]
[1724645902897,0.002826,64222.0,64221.0,1.33526951]
[1724645903078,0.002826,64222.0,64221.0,1.38197344]
[1724645904559,0.000826,64222.0,64221.0,1.38197344]
[1724645904961,0.002826,64222.0,64221.0,1.38197344]
[1724645905359,0.002826,64222.0,64221.0,1.38497344]
[1724645905562,0.001826,64222.0,64221.0,1.38497344]
[1724645905707,0.001826,64222.0,64221.0,1.38697344]
[1724645905912,0.001826,64222.0,64221.0,1.38694716]
[1724645906221,0.001826,64222.0,64221.0,1.49430083]
[1724645908370,0.001826,64222.0,64221.0,1.57030083]
[1724645909970,0.001826,64222.0,64221.0,2.25031792]
[1724645910177,0.001826,64222.0,64221.0,2.18030145]
[1724645910414,0.001826,64222.0,64221.0,2.27365675]
[1724645910828,0.001826,64222.0,64221.0,2.2736238]
[1724645911441,0.001826,64222.0,64221.0,2.2716238]
[1724645911842,0.000826,64222.0,64221.0,2.2686238]
[1724645912047,0.002826,64222.0,64221.0,2.2776238]
[1724645912220,0.002826,64222.0,64221.0,2.18429738]
[1724645913056,0.002826,64222.0,64221.0,1.87287338]
[1724645913386,0.002826,64222.0,64221.0,1.52762318]
[1724645913601,0.002826,64222.0,64221.0,1.87287341]
[1724645913809,0.001826,64222.0,64221.0,1.86987341]
[1724645914209,0.002826,64222.0,64221.0,1.87787341]
[1724645915816,0.002826,64222.0,64221.0,1.87787334]
[1724645916386,0.002826,64222.0,64221.0,1.94782394]
[1724645917348,0.002826,64222.0,64221.0,1.97787334]
[1724645917775,0.002826,64222.0,64221.0,2.07114663]
[1724645918177,0.002826,64222.0,64221.0,1.97787334]
[1724645918578,0.002826,64222.0,64221.0,2.40688895]
[1724645918775,0.002826,64222.0,64221.0,2.29029734]
[1724645919157,0.002826,64222.0,64221.0,2.33258083]
[1724645919768,0.002826,64222.0,64221.0,2.32658083]
[1724645919769,0.001826,64222.0,64221.0,2.32658083]
[1724645919967,0.000826,64222.0,64221.0,2.31858083]
[1724645920168,0.001826,64222.0,64221.0,2.32458083]
[1724645920423,0.002826,64222.0,64221.0,2.28429734]
[1724645920593,0.002826,64222.0,64221.0,2.32658083]
[1724645920792,0.002826,64222.0,64221.0,2.32458083]
[1724645921062,0.000826,64222.0,64221.0,2.31858083]
[1724645921211,0.001826,64222.0,64221.0,2.33258083]
[1724645921965,0.000826,64222.0,64221.0,2.31858083]
[1724645922171,0.001826,64222.0,64221.0,2.33258083]
[1724645922375,0.001826,64222.0,64221.0,2.34658083]
[1724645922738,0.001826,64222.0,64221.0,2.33258083]
[1724645922945,0.001826,64222.0,64221.0,2.65800483]
[1724645923151,0.000826,64230.0,64229.0,1.174047]
[1724645923351,0.000826,64230.0,64229.0,2.27781384]
[1724645923527,0.000826,64230.0,64229.0,2.72887786]
[1724645923918,0.000826,64233.0,64232.0,1.545969]
[1724645924119,0.000826,64233.0,64232.0,2.51479608]
[1724645924335,0.000826,64233.0,64232.0,2.46291638]
[1724645924767,0.000826,64233.0,64232.0,2.56030548]
[1724645924977,0.000826,64240.0,64239.0,1.545816]
[1724645925174,0.000826,64240.0,64239.0,2.27746923]
[1724645925379,0.000826,64240.0,64239.0,2.32298506]
[1724645925804,0.000826,64240.0,64239.0,2.43928218]
[1724645926036,0.000826,64240.0,64239.0,2.60004112]
[1724645926182,0.001826,64240.0,64239.0,2.59073329]
[1724645926823,0.001826,64240.0,64239.0,2.60473329]
[1724645927228,0.001826,64240.0,64239.0,2.51173498]
[1724645927436,0.001826,64240.0,64239.0,2.52058827]
[1724645928391,0.001826,64240.0,64239.0,2.24516322]
[1724645929146,0.001826,64240.0,64239.0,2.22191915]
[1724645929961,0.001826,64240.0,64239.0,2.17640332]
[1724645930135,0.001826,64240.0,64239.0,2.12995991]
[1724645932897,0.001826,64240.0,64239.0,2.13085991]
[1724645934690,0.001826,64240.0,64239.0,2.13709491]
[1724645938095,0.140226,64240.0,64239.0,1.4067103]
[1724645939129,0.139226,64240.0,64239.0,1.3927103]
[1724645939326,0.140226,64240.0,64239.0,1.4067103]
[1724645939728,0.079026,64240.0,64239.0,1.4067103]
[1724645940507,0.079026,64240.0,64239.0,1.3927103]
[1724645940911,0.080026,64240.0,64239.0,1.4067103]
[1724645943451,0.002826,64240.0,64239.0,1.4067103]
[1724645943657,0.002826,64240.0,64239.0,1.82462291]
[1724645944015,0.002826,64240.0,64239.0,1.5565103]
[1724645945127,0.002826,64240.0,64239.0,1.8678473]
[1724645945493,0.002826,64240.0,64239.0,1.5565103]
[1724645945878,0.002826,64240.0,64239.0,1.8678473]
[1724645946247,0.002826,64240.0,64239.0,1.5565103]
[1724645946579,0.002826,64240.0,64239.0,1.8678473]
[1724645947177,0.002826,64240.0,64239.0,1.5565103]
[1724645948614,0.002826,64240.0,64239.0,1.8678473]
[1724645949385,0.002826,64240.0,64239.0,1.7853473]